fUSD/lending_fUSD_20260607
["ID","MTS","AMOUNT","RATE_DAILY","PERIOD"]
[424353589,1780782651000,-151.0,0.000198,2]
[424353588,1780782651000,-500.0,0.000198,2]
[424353591,1780782651000,-500.0,0.000198,2]
[424353592,1780782651000,-151.0,0.000198,2]
[424353593,1780782651000,-719.04747942,0.00019855,2]
[424353594,1780782651000,-151.0,0.00019855,2]
[424353598,1780782651000,-1125.0,0.0001996,2]
[424353597,1780782651000,-400.72288756,0.0001996,2]
[424353596,1780782651000,-151.0,0.0001991,2]
[424353595,1780782651000,-745.65223615,0.0001991,2]
[424353604,1780782651000,-196.72,0.0002,2]
[424353601,1780782651000,-500.0,0.0001997,2]
[424353600,1780782651000,-151.0,0.00019965,2]
[424353599,1780782651000,-773.24136889,0.00019965,2]
[424353602,1780782651000,-1000.0,0.0001997,2]
[424353606,1780782651000,-3937.27975494,0.0002,2]
[424353605,1780782651000,-870.149462,0.0002,2]
[424353541,1780782651000,-151.0,0.000198,2]
[424353576,1780782651000,-500.0,0.000198,2]
[424353577,1780782651000,-152.0,0.000198,2]
[424353603,1780782651000,-300.0,0.00019999,2]
[424353574,1780782651000,-151.0,0.000198,2]
[424353575,1780782651000,-151.0,0.000198,2]
[424353550,1780782651000,-500.0,0.000198,2]
[424353549,1780782651000,-152.0,0.000198,2]
[424353547,1780782651000,-151.0,0.000198,2]
[424353548,1780782651000,-151.0,0.000198,2]
[424353546,1780782651000,-209.40437684,0.000198,2]
[424353552,1780782651000,-151.0,0.000198,2]
[424353551,1780782651000,-721.12765534,0.000198,2]
[424353553,1780782651000,-152.0,0.000198,2]
[424353555,1780782651000,-151.0,0.000198,2]
[424353556,1780782651000,-500.0,0.000198,2]
[424353554,1780782651000,-174.01604282,0.000198,2]
[424353557,1780782651000,-152.0,0.000198,2]
[424353559,1780782651000,-151.0,0.000198,2]
[424353545,1780782651000,-152.0,0.000198,2]
[424353563,1780782651000,-151.0,0.000198,2]
[424353558,1780782651000,-151.0,0.000198,2]
[424353572,1780782651000,-500.0,0.000198,2]
[424353568,1780782651000,-500.0,0.000198,2]
[424353570,1780782651000,-152.0,0.000198,2]
[424353571,1780782651000,-151.0,0.000198,2]
[424353569,1780782651000,-151.0,0.000198,2]
[424353573,1780782651000,-152.0,0.000198,2]
[424353566,1780782651000,-152.0,0.000198,2]
[424353565,1780782651000,-151.0,0.000198,2]
[424353560,1780782651000,-500.0,0.000198,2]
[424353564,1780782651000,-500.0,0.000198,2]
[424353562,1780782651000,-152.0,0.000198,2]
[424353561,1780782651000,-151.0,0.000198,2]
[424353567,1780782651000,-151.0,0.000198,2]
[424353648,1780782652000,-300.0,0.00020146,2]
[424353647,1780782652000,-151.0,0.0002013,2]
[424353645,1780782652000,-303.75280192,0.00020126,2]
[424353644,1780782652000,-500.0,0.00020126,2]
[424353637,1780782652000,-500.0,0.00020126,2]
[424353642,1780782652000,-500.0,0.00020126,2]
[424353638,1780782652000,-500.0,0.00020126,2]
[424353640,1780782652000,-500.0,0.00020126,2]
[424353649,1780782652000,-300.0,0.00020146,2]
[424353635,1780782652000,-500.0,0.00020126,2]
[424353643,1780782652000,-500.0,0.00020126,2]
[424353639,1780782652000,-500.0,0.00020126,2]
[424353654,1780782652000,-382.0,0.00020147,2]
[424353653,1780782652000,-1227.0,0.00020147,2]
[424353650,1780782652000,-1358.0,0.00020147,2]
[424353652,1780782652000,-1274.0,0.00020147,2]
[424353655,1780782652000,-933.0,0.00020147,2]
[424353651,1780782652000,-3554.0,0.00020147,2]
[424353656,1780782652000,-3642.0,0.00020147,2]
[424353658,1780782652000,-151.0,0.00020185,2]
[424353657,1780782652000,-894.19061325,0.00020185,2]
[424353662,1780782652000,-150.0,0.00020198,2]
[424353660,1780782652000,-150.0,0.00020198,2]
[424353661,1780782652000,-150.0,0.00020198,2]
[424353641,1780782652000,-500.0,0.00020126,2]
[424353665,1780782652000,-150.0,0.00020198,2]
[424353646,1780782652000,-862.28603014,0.0002013,2]
[424353636,1780782652000,-500.0,0.00020126,2]
[424353621,1780782652000,-495.0,0.0002,2]
[424353632,1780782652000,-500.0,0.00020126,2]
[424353663,1780782652000,-150.0,0.00020198,2]
[424353608,1780782652000,-245.0,0.0002,2]
[424353607,1780782652000,-1050.0,0.0002,2]
[424353611,1780782652000,-400.0,0.0002,2]
[424353615,1780782652000,-1467.0,0.0002,2]
[424353613,1780782652000,-454.0,0.0002,2]
[424353609,1780782652000,-1353.61627893,0.0002,2]
[424353610,1780782652000,-719.0,0.0002,2]
[424353612,1780782652000,-671.0,0.0002,2]
[424353616,1780782652000,-200.0,0.0002,10]
[424353614,1780782652000,-1920.0,0.0002,2]
[424353617,1780782652000,-623.0,0.0002,2]
[424353634,1780782652000,-500.0,0.00020126,2]
[424353618,1780782652000,-391.0,0.0002,2]
[424353623,1780782652000,-1383.0,0.0002,2]
[424353622,1780782652000,-2000.0,0.0002,7]
[424353620,1780782652000,-445.0,0.0002,2]
[424353625,1780782652000,-151.0,0.0002002,2]
[424353627,1780782652000,-151.0,0.00020075,2]
[424353626,1780782652000,-831.51979762,0.00020075,2]
[424353624,1780782652000,-801.85129954,0.0002002,2]
[424353628,1780782652000,-253.448947,0.000201,10]
[424353629,1780782652000,-523.33,0.00020126,2]
[424353630,1780782652000,-500.0,0.00020126,2]
[424353631,1780782652000,-500.0,0.00020126,2]
[424353633,1780782652000,-500.0,0.00020126,2]
[424353619,1780782652000,-1337.0,0.0002,2]
[424353659,1780782652000,-150.0,0.00020198,2]
[424353668,1780782652000,-150.0,0.00020198,2]
[424353667,1780782652000,-150.0,0.00020198,2]
[424353702,1780782652000,-997.16350561,0.0002035,2]
[424353698,1780782652000,-151.0,0.00020348,2]
[424353700,1780782652000,-217.15233878,0.00020348,2]
[424353695,1780782652000,-500.0,0.00020348,2]
[424353701,1780782652000,-217.15233878,0.00020348,2]
[424353703,1780782652000,-151.0,0.0002035,2]
[424353704,1780782652000,-279.7,0.00020381,2]
[424353705,1780782652000,-163.0,0.00020396,2]
[424353709,1780782652000,-386.0,0.00020492,2]
[424353713,1780782652000,-456.0,0.00020504,2]
[424353710,1780782652000,-386.0,0.00020493,2]
[424353707,1780782652000,-456.0,0.00020476,2]
[424353708,1780782652000,-386.0,0.00020482,2]
[424353712,1780782652000,-386.0,0.00020504,2]
[424353711,1780782652000,-386.0,0.00020497,2]
[424353706,1780782652000,-1353.61627893,0.000204,2]
[424353714,1780782652000,-416.0,0.00020506,2]
[424353716,1780782652000,-386.0,0.00020511,2]
[424353715,1780782652000,-386.0,0.00020509,2]
[424353718,1780782652000,-6630.929561,0.0002052,2]
[424353717,1780782652000,-386.0,0.00020515,2]
[424353719,1780782652000,-386.0,0.0002052,2]
[424353722,1780782652000,-386.0,0.0002053,2]
[424353721,1780782652000,-386.0,0.00020527,2]
[424353723,1780782652000,-386.0,0.00020531,2]
[424353664,1780782652000,-150.0,0.00020198,2]
[424353724,1780782652000,-386.0,0.00020546,2]
[424353699,1780782652000,-2157.14243826,0.00020348,2]
[424353697,1780782652000,-151.0,0.00020348,2]
[424353720,1780782652000,-386.0,0.00020522,2]
[424353694,1780782652000,-200.0,0.00020348,2]
[424353666,1780782652000,-150.0,0.00020198,2]
[424353669,1780782652000,-150.0,0.00020198,2]
[424353670,1780782652000,-150.0,0.00020198,2]
[424353671,1780782652000,-1755.97,0.000202,2]
[424353674,1780782652000,-297.0,0.00020225,2]
[424353676,1780782652000,-151.0,0.0002024,2]
[424353673,1780782652000,-150.0,0.00020225,2]
[424353696,1780782652000,-1481.2378076,0.00020348,2]
[424353675,1780782652000,-927.27566594,0.0002024,2]
[424353677,1780782652000,-500.0,0.00020269,2]
[424353678,1780782652000,-961.58486558,0.00020295,2]
[424353680,1780782652000,-800.0,0.00020327,2]
[424353679,1780782652000,-151.0,0.00020295,2]
[424353672,1780782652000,-1353.61627893,0.000202,2]
[424353682,1780782652000,-800.0,0.00020327,2]
[424353681,1780782652000,-800.0,0.00020327,2]
[424353692,1780782652000,-151.0,0.00020348,2]
[424353690,1780782652000,-181.08010149,0.00020348,2]
[424353684,1780782652000,-800.0,0.00020327,2]
[424353689,1780782652000,-442.0,0.00020327,2]
[424353691,1780782652000,-217.15233878,0.00020348,2]
[424353685,1780782652000,-800.0,0.00020327,2]
[424353687,1780782652000,-800.0,0.00020327,2]
[424353686,1780782652000,-800.0,0.00020327,2]
[424353683,1780782652000,-800.0,0.00020327,2]
[424353688,1780782652000,-800.0,0.00020327,2]
[424353693,1780782652000,-200.0,0.00020348,2]
[424353763,1780782653000,-443.97712866,0.000207,2]
[424353768,1780782653000,-386.0,0.00020714,2]
[424353764,1780782653000,-2786.55436936,0.000207,2]
[424353762,1780782653000,-2844.5430685,0.000207,2]
[424353754,1780782653000,-277.52332843,0.00020655,2]
[424353760,1780782653000,-210.90160188,0.00020695,2]
[424353759,1780782653000,-386.0,0.00020695,2]
[424353758,1780782653000,-456.0,0.00020681,2]
[424353757,1780782653000,-386.0,0.00020671,2]
[424353756,1780782653000,-1000.0,0.0002067,2]
[424353761,1780782653000,-266.34335731,0.000207,2]
[424353766,1780782653000,-386.0,0.00020706,2]
[424353775,1780782653000,-745.06912787,0.00020729,2]
[424353765,1780782653000,-213.216407,0.000207,2]
[424353770,1780782653000,-386.0,0.00020726,2]
[424353769,1780782653000,-386.0,0.00020718,2]
[424353772,1780782653000,-252.32699537,0.00020726,2]
[424353780,1780782653000,-386.0,0.00020744,2]
[424353771,1780782653000,-166.0846854,0.00020726,2]
[424353774,1780782653000,-268.01318868,0.00020729,2]
[424353773,1780782653000,-386.0,0.00020729,2]
[424353779,1780782653000,-386.0,0.00020736,2]
[424353776,1780782653000,-298.02765115,0.00020729,2]
[424353755,1780782653000,-500.0,0.0002067,2]
[424353777,1780782653000,-386.0,0.00020733,2]
[424353767,1780782653000,-386.0,0.00020706,2]
[424353752,1780782653000,-386.0,0.0002065,2]
[424353739,1780782653000,-386.0,0.00020592,2]
[424353753,1780782653000,-386.0,0.00020655,2]
[424353778,1780782653000,-386.0,0.00020734,2]
[424353725,1780782653000,-456.0,0.00020546,2]
[424353727,1780782653000,-386.0,0.00020549,2]
[424353726,1780782653000,-456.0,0.00020548,2]
[424353728,1780782653000,-456.0,0.00020558,2]
[424353729,1780782653000,-386.0,0.00020559,2]
[424353731,1780782653000,-386.0,0.00020569,2]
[424353732,1780782653000,-500.0,0.0002057,2]
[424353733,1780782653000,-1000.0,0.0002057,2]
[424353734,1780782653000,-386.0,0.00020576,2]
[424353735,1780782653000,-386.0,0.00020583,2]
[424353736,1780782653000,-2353.77864379,0.00020584,2]
[424353737,1780782653000,-386.0,0.00020584,2]
[424353738,1780782653000,-386.0,0.00020585,2]
[424353740,1780782653000,-386.0,0.00020598,2]
[424353745,1780782653000,-386.0,0.00020616,2]
[424353743,1780782653000,-386.0,0.00020604,2]
[424353742,1780782653000,-1353.61627893,0.000206,2]
[424353741,1780782653000,-386.0,0.00020599,2]
[424353744,1780782653000,-386.0,0.00020616,2]
[424353746,1780782653000,-386.0,0.00020619,2]
[424353747,1780782653000,-386.0,0.00020619,2]
[424353749,1780782653000,-456.0,0.0002063,2]
[424353748,1780782653000,-386.0,0.00020619,2]
[424353751,1780782653000,-456.0,0.00020641,2]
[424353750,1780782653000,-386.0,0.00020638,2]
[424353781,1780782653000,-1353.61627893,0.000208,2]
[424353730,1780782653000,-386.0,0.00020562,2]
[424353782,1780782653000,-500.0,0.00020877,2]
[424353810,1780782653000,-391.0,0.00021,2]
[424353812,1780782653000,-445.0,0.00021,2]
[424353816,1780782653000,-179.98764423,0.0002101,2]
[424353818,1780782653000,-180.0,0.00021055,2]
[424353819,1780782653000,-156.587,0.00021169,2]
[424353817,1780782653000,-1125.0,0.00021011,2]
[424353820,1780782653000,-221.65408424,0.00021169,2]
[424353824,1780782653000,-13793.37,0.00021273,2]
[424353823,1780782653000,-287.87,0.00021273,2]
[424353825,1780782653000,-1024.44,0.00021273,2]
[424353826,1780782653000,-2073.09,0.00021273,2]
[424353822,1780782653000,-1353.61627893,0.000212,2]
[424353809,1780782653000,-623.0,0.00021,2]
[424353827,1780782653000,-1708.05,0.0002137,2]
[424353829,1780782653000,-1353.61627893,0.000214,2]
[424353833,1780782653000,-219.7000933,0.00021444,2]
[424353830,1780782653000,-194.72792766,0.00021444,2]
[424353835,1780782653000,-1592.87721992,0.00021444,2]
[424353832,1780782653000,-151.0,0.00021444,2]
[424353838,1780782653000,-151.0,0.00021444,2]
[424353837,1780782653000,-151.0,0.00021444,2]
[424353839,1780782653000,-2319.72410669,0.00021444,2]
[424353831,1780782653000,-233.5188934,0.00021444,2]
[424353834,1780782653000,-200.0,0.00021444,2]
[424353836,1780782653000,-500.0,0.00021444,2]
[424353783,1780782653000,-187.78006524,0.00020896,2]
[424353828,1780782653000,-2298.58001474,0.000214,2]
[424353815,1780782653000,-179.98764423,0.0002101,2]
[424353821,1780782653000,-2298.58001474,0.000212,2]
[424353814,1780782653000,-1383.0,0.00021,2]
[424353784,1780782653000,-225.18697532,0.00020896,2]
[424353813,1780782653000,-495.0,0.00021,2]
[424353786,1780782653000,-200.0,0.00020896,2]
[424353790,1780782653000,-151.0,0.00020896,2]
[424353787,1780782653000,-200.0,0.00020896,2]
[424353785,1780782653000,-151.0,0.00020896,2]
[424353789,1780782653000,-500.0,0.00020896,2]
[424353791,1780782653000,-151.0,0.00020896,2]
[424353792,1780782653000,-2236.95670847,0.00020896,2]
[424353793,1780782653000,-225.18697532,0.00020896,2]
[424353794,1780782653000,-265.98216506,0.00020896,2]
[424353795,1780782653000,-10000.0,0.00020922,2]
[424353797,1780782653000,-300.0,0.00020999,2]
[424353788,1780782653000,-1536.04360648,0.00020896,2]
[424353799,1780782653000,-870.149462,0.00021,2]
[424353811,1780782653000,-1337.0,0.00021,2]
[424353798,1780782653000,-10715.0129912,0.00021,2]
[424353808,1780782653000,-1467.0,0.00021,2]
[424353806,1780782653000,-454.0,0.00021,2]
[424353805,1780782653000,-671.0,0.00021,2]
[424353804,1780782653000,-719.0,0.00021,2]
[424353807,1780782653000,-1920.0,0.00021,2]
[424353803,1780782653000,-1353.61627893,0.00021,2]
[424353802,1780782653000,-245.0,0.00021,2]
[424353801,1780782653000,-2298.58001474,0.00021,2]
[424353800,1780782653000,-1050.0,0.00021,2]
[424353796,1780782653000,-1110.09996919,0.00020947,2]
[424353882,1780782654000,-671.0,0.00022,2]
[424353883,1780782654000,-454.0,0.00022,2]
[424353878,1780782654000,-245.0,0.00022,2]
[424353868,1780782654000,-200.0,0.00021992,2]
[424353869,1780782654000,-1651.81367706,0.00021992,2]
[424353870,1780782654000,-500.0,0.00021992,2]
[424353875,1780782654000,-377218.15378462,0.00022,4]
[424353867,1780782654000,-294.78449989,0.00021992,2]
[424353871,1780782654000,-151.0,0.00021992,2]
[424353879,1780782654000,-1755.97,0.00022,7]
[424353876,1780782654000,-870.149462,0.00022,2]
[424353881,1780782654000,-450.0,0.00022,2]
[424353895,1780782654000,-500.0,0.00022149,2]
[424353885,1780782654000,-1467.0,0.00022,2]
[424353887,1780782654000,-391.0,0.00022,2]
[424353880,1780782654000,-719.0,0.00022,2]
[424353888,1780782654000,-1337.0,0.00022,2]
[424353886,1780782654000,-623.0,0.00022,2]
[424353889,1780782654000,-1820.05,0.00022,2]
[424353890,1780782654000,-445.0,0.00022,2]
[424353891,1780782654000,-495.0,0.00022,2]
[424353892,1780782654000,-1383.0,0.00022,2]
[424353894,1780782654000,-1125.0,0.00022117,2]
[424353893,1780782654000,-2298.58001474,0.000221,2]
[424353872,1780782654000,-151.0,0.00021992,2]
[424353884,1780782654000,-1920.0,0.00022,2]
[424353866,1780782654000,-242.15909246,0.00021992,2]
[424353840,1780782654000,-233.5188934,0.00021444,2]
[424353877,1780782654000,-1050.0,0.00022,2]
[424353896,1780782654000,-150.0,0.00022265,2]
[424353843,1780782654000,-2298.58001474,0.000216,2]
[424353844,1780782654000,-1353.61627893,0.000217,2]
[424353849,1780782654000,-6952.99847296,0.00021906,2]
[424353842,1780782654000,-500.0,0.00021504,2]
[424353845,1780782654000,-286.33,0.000219,2]
[424353847,1780782654000,-1353.61627893,0.000219,2]
[424353846,1780782654000,-2298.58001474,0.000219,2]
[424353848,1780782654000,-311.96505715,0.00021906,2]
[424353850,1780782654000,-5000.0,0.00021906,2]
[424353851,1780782654000,-5000.0,0.00021906,2]
[424353852,1780782654000,-5000.0,0.00021906,2]
[424353874,1780782654000,-242.15909246,0.00021992,2]
[424353856,1780782654000,-1601.735642,0.00021918,2]
[424353864,1780782654000,-1050.0,0.00021946,7]
[424353855,1780782654000,-242.339104,0.00021918,2]
[424353860,1780782654000,-150.0,0.00021918,2]
[424353857,1780782654000,-1601.735642,0.00021918,2]
[424353854,1780782654000,-5000.0,0.00021918,2]
[424353861,1780782654000,-200.0,0.00021918,2]
[424353862,1780782654000,-2500.0,0.00021946,2]
[424353859,1780782654000,-1601.735642,0.00021918,2]
[424353858,1780782654000,-1601.735642,0.00021918,2]
[424353863,1780782654000,-350.0,0.00021946,2]
[424353865,1780782654000,-201.93286098,0.00021992,2]
[424353873,1780782654000,-2405.55389863,0.00021992,2]
[424353853,1780782654000,-5000.0,0.00021906,2]
[424353901,1780782654000,-2298.58001474,0.000223,2]
[424353841,1780782654000,-2019.5393159,0.00021499,2]
[424353898,1780782654000,-150.0,0.00022265,2]
[424353928,1780782654000,-599.60298507,0.00022539,2]
[424353933,1780782654000,-200.0,0.0002254,2]
[424353931,1780782654000,-251.11897888,0.0002254,2]
[424353927,1780782654000,-162.380719,0.00022538,2]
[424353935,1780782654000,-151.0,0.0002254,2]
[424353934,1780782654000,-500.0,0.0002254,2]
[424353936,1780782654000,-151.0,0.0002254,2]
[424353938,1780782654000,-251.11897888,0.0002254,2]
[424353941,1780782654000,-13793.37,0.00022691,2]
[424353937,1780782654000,-2494.55939288,0.0002254,2]
[424353939,1780782654000,-168.33,0.00022603,2]
[424353940,1780782654000,-287.87,0.00022691,2]
[424353945,1780782654000,-500.0,0.00022813,2]
[424353942,1780782654000,-1024.44,0.00022691,2]
[424353943,1780782654000,-2073.09,0.00022691,2]
[424353944,1780782654000,-2298.58001474,0.000227,2]
[424353947,1780782654000,-1000.23409663,0.00023,2]
[424353954,1780782654000,-454.0,0.00023,2]
[424353953,1780782654000,-671.0,0.00023,2]
[424353948,1780782654000,-870.149462,0.00023,2]
[424353949,1780782654000,-1050.0,0.00023,2]
[424353950,1780782654000,-2298.58001474,0.00023,2]
[424353952,1780782654000,-719.0,0.00023,2]
[424353955,1780782654000,-1920.0,0.00023,2]
[424353951,1780782654000,-245.0,0.00023,2]
[424353929,1780782654000,-747.80937859,0.00022539,2]
[424353932,1780782654000,-1712.93078311,0.0002254,2]
[424353946,1780782654000,-2168.5,0.00022898,2]
[424353926,1780782654000,-2298.58001474,0.000225,2]
[424353930,1780782654000,-209.40437684,0.0002254,2]
[424353900,1780782654000,-200.0,0.0002227,2]
[424353899,1780782654000,-220.0,0.00022265,2]
[424353902,1780782654000,-246.0,0.00022307,2]
[424353903,1780782654000,-172.0,0.00022324,2]
[424353904,1780782654000,-279.7,0.00022353,2]
[424353906,1780782654000,-150.0,0.00022375,2]
[424353908,1780782654000,-165.0,0.00022375,2]
[424353909,1780782654000,-1150.0,0.00022384,2]
[424353907,1780782654000,-150.0,0.00022375,2]
[424353905,1780782654000,-150.0,0.00022375,2]
[424353913,1780782654000,-1150.0,0.00022384,2]
[424353910,1780782654000,-1150.0,0.00022384,2]
[424353897,1780782654000,-150.0,0.00022265,2]
[424353911,1780782654000,-1150.0,0.00022384,2]
[424353912,1780782654000,-1150.0,0.00022384,2]
[424353923,1780782654000,-1525.66,0.00022466,2]
[424353922,1780782654000,-1584.91,0.00022466,2]
[424353921,1780782654000,-245.0,0.00022464,2]
[424353924,1780782654000,-726.3,0.00022466,2]
[424353920,1780782654000,-427.07,0.000224,14]
[424353925,1780782654000,-161.00209309,0.00022468,2]
[424353919,1780782654000,-500.0,0.00022392,2]
[424353917,1780782654000,-1150.0,0.00022384,2]
[424353915,1780782654000,-1150.0,0.00022384,2]
[424353916,1780782654000,-1150.0,0.00022384,2]
[424353914,1780782654000,-1150.0,0.00022384,2]
[424353918,1780782654000,-1113.0,0.00022384,2]
[424353994,1780782655000,-167.33135552,0.00023413,2]
[424353986,1780782655000,-150.0,0.00023198,2]
[424353984,1780782655000,-150.0,0.00023198,2]
[424353985,1780782655000,-150.0,0.00023198,2]
[424353991,1780782655000,-150.0,0.00023288,2]
[424353987,1780782655000,-150.0,0.00023198,2]
[424353983,1780782655000,-150.0,0.00023198,2]
[424353992,1780782655000,-658.96648271,0.00023413,2]
[424353993,1780782655000,-201.10477385,0.00023413,2]
[424353989,1780782655000,-150.0,0.00023198,2]
[424353999,1780782655000,-658.96648271,0.00023617,2]
[424353997,1780782655000,-500.0,0.00023498,2]
[424353996,1780782655000,-658.96648271,0.00023481,2]
[424354000,1780782655000,-225.18697532,0.00023636,2]
[424354001,1780782655000,-270.0455652,0.00023636,2]
[424353990,1780782655000,-1125.0,0.00023222,2]
[424353998,1780782655000,-658.96648271,0.00023549,2]
[424354002,1780782655000,-1842.0326633,0.00023636,2]
[424354003,1780782655000,-200.0,0.00023636,2]
[424354007,1780782655000,-270.0455652,0.00023636,2]
[424354004,1780782655000,-151.0,0.00023636,2]
[424354005,1780782655000,-151.0,0.00023636,2]
[424354006,1780782655000,-2682.57183977,0.00023636,2]
[424353995,1780782655000,-219.65549422,0.00023413,2]
[424353988,1780782655000,-150.0,0.00023198,2]
[424353979,1780782655000,-933.0,0.00023147,2]
[424353981,1780782655000,-150.0,0.00023198,2]
[424354010,1780782655000,-200.0,0.00023817,2]
[424353957,1780782655000,-1467.0,0.00023,2]
[424353956,1780782655000,-162.0,0.00023,7]
[424353958,1780782655000,-623.0,0.00023,2]
[424353960,1780782655000,-1337.0,0.00023,2]
[424353961,1780782655000,-445.0,0.00023,2]
[424353964,1780782655000,-200.0,0.00023043,2]
[424353959,1780782655000,-391.0,0.00023,2]
[424353963,1780782655000,-1383.0,0.00023,2]
[424353962,1780782655000,-495.0,0.00023,2]
[424353966,1780782655000,-260.4103811,0.00023088,2]
[424353982,1780782655000,-150.0,0.00023198,2]
[424353968,1780782655000,-200.0,0.00023088,2]
[424353969,1780782655000,-500.0,0.00023088,2]
[424353970,1780782655000,-151.0,0.00023088,2]
[424353974,1780782655000,-1358.0,0.00023147,2]
[424353971,1780782655000,-151.0,0.00023088,2]
[424353977,1780782655000,-1227.0,0.00023147,2]
[424353975,1780782655000,-3554.0,0.00023147,2]
[424353972,1780782655000,-2586.85809042,0.00023088,2]
[424353973,1780782655000,-260.4103811,0.00023088,2]
[424353976,1780782655000,-1274.0,0.00023147,2]
[424353978,1780782655000,-382.0,0.00023147,2]
[424353980,1780782655000,-3642.0,0.00023147,2]
[424353967,1780782655000,-1776.30922209,0.00023088,2]
[424353965,1780782655000,-217.15233878,0.00023088,2]
[424354008,1780782655000,-658.96648271,0.00023685,7]
[424354011,1780782655000,-658.96648271,0.00023821,7]
[424354040,1780782655000,-151.0,0.00024184,2]
[424354046,1780782655000,-658.96648271,0.00024297,14]
[424354042,1780782655000,-2781.82699784,0.00024184,2]
[424354047,1780782655000,-279.7,0.00024324,2]
[424354045,1780782655000,-658.96648271,0.00024229,14]
[424354044,1780782655000,-500.0,0.00024203,2]
[424354043,1780782655000,-280.03725111,0.00024184,2]
[424354059,1780782655000,-219.65549421,0.00024645,60]
[424354049,1780782655000,-1125.0,0.00024383,2]
[424354048,1780782655000,-658.96648271,0.00024365,14]
[424354050,1780782655000,-167.33135552,0.00024399,14]
[424354039,1780782655000,-200.0,0.00024184,2]
[424354051,1780782655000,-219.65549422,0.00024399,14]
[424354057,1780782655000,-658.96648271,0.00024637,14]
[424354055,1780782655000,-658.96648271,0.00024569,14]
[424354054,1780782655000,-658.96648271,0.00024501,14]
[424354056,1780782655000,-200.0,0.0002459,2]
[424354058,1780782655000,-150.0,0.00024645,2]
[424354060,1780782655000,-200.0,0.00024645,2]
[424354068,1780782655000,-246.938728,0.00024658,2]
[424354062,1780782655000,-151.0,0.00024658,2]
[424354069,1780782655000,-151.0,0.00024658,2]
[424354061,1780782655000,-187.01,0.00024658,2]
[424354009,1780782655000,-658.96648271,0.00023753,7]
[424354053,1780782655000,-150.0,0.00024464,2]
[424354041,1780782655000,-151.0,0.00024184,2]
[424354052,1780782655000,-658.96648271,0.00024433,14]
[424354037,1780782655000,-280.03725111,0.00024184,2]
[424354012,1780782655000,-658.96648271,0.00023889,7]
[424354038,1780782655000,-1910.18787185,0.00024184,2]
[424354013,1780782655000,-1755.97,0.000239,7]
[424354014,1780782655000,-168.3888056,0.00023907,2]
[424354015,1780782655000,-658.96648271,0.00023957,7]
[424354018,1780782655000,-245.0,0.00024,2]
[424354016,1780782655000,-870.149462,0.00024,2]
[424354019,1780782655000,-719.0,0.00024,2]
[424354021,1780782655000,-671.0,0.00024,2]
[424354017,1780782655000,-1050.0,0.00024,2]
[424354020,1780782655000,-500.0,0.00024,2]
[424354022,1780782655000,-454.0,0.00024,2]
[424354024,1780782655000,-1467.0,0.00024,2]
[424354023,1780782655000,-1920.0,0.00024,2]
[424354025,1780782655000,-215.80795776,0.00024,7]
[424354036,1780782655000,-233.5188934,0.00024184,2]